Cogmind - Beta 9.6 @@@ ROGUE MODE // 2020.04.18 @ 19:23:26 Player: MistressMomoko Result: Destroyed by S-10 Pest with Light Assault Rifle Performance ------------- Evolutions (0) 0 Regions Visited (2) 400 Robots Destroyed (1) 5 Value Destroyed (34) 34 Prototype IDs (0) 0 Alien Tech Used (0) 0 Bonus (0) 0 TOTAL SCORE: 439 Bonus ------- None Cogmind --------- Core Integrity 0/250 Matter 300/300 Energy 100/100 System Corruption 1% Temperature Cool (0) Movement Core (100) Ox1 Location -10/Mines Parts ------- > --- POWER (1) -------- (None) > --- PROPULSION (2) --- (None) > --- UTILITY (2) ------ Small Storage Unit > --- WEAPON (2) ------- (None) > --- INVENTORY (6) ---- Ion Engine Light Treads Light Treads Core Shielding Light Assault Rifle Grenade Launcher Peak State ------------ > --- POWER ------------ Light Ion Engine > --- PROPULSION ------- Wheel Compact Wheel > --- UTILITY ---------- Small Storage Unit > --- WEAPON ----------- Medium Laser Light Assault Rifle > --- INVENTORY -------- Ion Engine Light Treads Light Treads Light Assault Rifle Grenade Launcher [Rating: 6] Favorites ----------- Power Light Ion Engine Engine Light Ion Engine Propulsion Compact Wheel Wheel Compact Wheel Utility Small Storage Unit Storage Small Storage Unit Weapon Medium Laser Energy Gun Medium Laser Ballistic Gun Light Assault Rifle Build | -11 -10 -10 ------- Run | Scr Mat Min Slots Evolved . | . . . Power . | . . . Propulsion . | . . . Utility . | . . . Weapon . | . . . Parts Attached 7 | 5 2 . Power 1 | 1 . . Engine 1 | 1 . . Core . | . . . Reactor . | . . . Propulsion 2 | 2 . . Treads . | . . . Leg . | . . . Wheel 2 | 2 . . Hover . | . . . Flight . | . . . Utility 1 | 1 . . Device . | . . . Storage 1 | 1 . . Processor . | . . . Hackware . | . . . Protection . | . . . Artifact . | . . . Weapon 3 | 1 2 . Energy Gun 2 | 1 1 . Energy Cannon . | . . . Ballistic Gun 1 | . 1 . Ballistic Cannon . | . . . Launcher . | . . . Special Weapon . | . . . Impact Weapon . | . . . Slashing Weapon . | . . . Piercing Weapon . | . . . Special Melee Weapon . | . . . Unidentified Prototypes . | . . . Parts Lost 5 | . . 5 Power 1 | . . 1 Propulsion 2 | . . 2 Utility . | . . . Weapon 2 | . . 2 Highest Loss Streak 5 | . . 5 Average Slot Usage (%) 72 | . 82 59 Engine 11 | . 14 8 Wheel 24 | . 28 19 Storage 14 | . 14 14 Energy Gun 11 | . 14 7 Ballistic Gun 10 | . 11 9 Naked Turns . | . . . Heaviest Build 10 | 9 10 9 Greatest Support 26 | 26 26 26 Greatest Overweight (x) 1 | . . 1 Average Overweight (x) . | . . . Largest Inventory Capacity 6 | 6 6 6 Average Capacity 5 | 5 6 6 Most Carried 6 | 5 6 6 Average Carried 4 | 2 5 6 Final Capacity 6 | 6 6 6 Final Carried 6 | 5 6 6 Class Distribution -------------------- 100% | Mutant Dominant Class ---------------- Mutant | -10/Materials Mutant | -10/Mines Resources | -11 -10 -10 ----------- Run | Scr Mat Min Matter Collected 254 | 219 35 . Remotely . | . . . Salvage Created 35 | . 35 . Parts 3 | . 3 . Haulers Intercepted . | . . . Recyclers Shooed . | . . . Parts Field Recycled . | . . . Retrieved Matter . | . . . Parts Self-Destructed . | . . . Prevented . | . . . Kills | -11 -10 -10 ------- Run | Scr Mat Min Combat Hostiles Destroyed 1 | . 1 . Guns 1 | . 1 . Classes Destroyed 1 | . 1 . Grunt 1 | . 1 . Best Kill Streak 1 | . 1 . Combat Bots Only 1 | . 1 . Max Kills in Single Turn 1 | . 1 . Gunslinging . | . . . Exploded . | . . . Melee . | . . . Uniques/NPCs Destroyed . | . . . Combat | -11 -10 -10 -------- Run | Scr Mat Min Damage Taken 561 | . 65 496 Core 255 | . 21 234 Absorbed by Shields . | . . . Core Remaining (%) 100 | 100 . . Volleys Fired 6 | . 5 1 Largest 2 | . 2 2 Hottest 70 | . 70 60 Shots Fired 12 | . 10 2 Gun 12 | . 10 2 Cannon . | . . . Launcher . | . . . Special . | . . . Kinetic 6 | . 5 1 Thermal 6 | . 5 1 Explosive . | . . . Electromagnetic . | . . . Robot Hit Streak 3 | . 3 . Robot Miss Streak 2 | . 1 2 Penetration Max . | . . . Secondary Targets . | . . . Shots Hit Robots 6 | . 6 . Core Hits 5 | . 2 3 Critical Hits . | . . . Critical Kills . | . . . Critical Parts Destroyed . | . . . Melee Attacks . | . . . Impact . | . . . Slashing . | . . . Piercing . | . . . Sneak Attacks . | . . . Combat Hostiles . | . . . Follow-up Attacks . | . . . Damage Inflicted 78 | . 41 37 Guns 49 | . 41 8 Cannons . | . . . Explosions . | . . . Melee . | . . . Ramming 29 | . . 29 Kinetic 25 | . 17 8 Thermal 24 | . 24 . Explosive . | . . . Electromagnetic . | . . . Impact . | . . . Slashing . | . . . Piercing . | . . . Highest Corruption 1 | . . 1 Average Corruption 1 | . . 1 Corruption Purged . | . . . Overload Shots . | . . . Overflow Damage . | . . . Projectiles . | . . . Explosions . | . . . Melee . | . . . Knockbacks . | . . . Impact . | . . . Kinetic . | . . . Secondary . | . . . Self-Inflicted Damage 13 | . . 13 Shots . | . . . Rammed 16 | . . 16 Targets Rammed 16 | . . 16 Kicked . | . . . Crushed . | . . . Highest Temperature 120 | . 120 20 Average Temperature 53 | . 57 15 Received Heat Transfer 63 | . 36 27 Siege Activations . | . . . Robots Corrupted . | . . . Combat Hostiles . | . . . Parts Fried . | . . . Impact Corruptions . | . . . Robots Melted . | . . . Combat Hostiles . | . . . Parts Melted . | . . . Heat Transferred 74 | . 74 . Parts Sabotaged . | . . . Parts Stolen . | . . . Parts Stripped . | . . . Power Chain Reactions . | . . . Missiles Intercepted . | . . . Alert | -11 -10 -10 ------- Run | Scr Mat Min Peak Influence 45 | . 45 32 Average Influence 10 | . 15 17 Maximum Alert Level . | . . . Low Security (%) 100 | 100 100 100 Level 1 . | . . . Level 2 . | . . . Level 3 . | . . . Level 4 . | . . . Level 5 . | . . . High Security . | . . . Max Security . | . . . Squads Dispatched 1 | . 1 . Investigation . | . . . Extermination . | . . . Reinforcement 1 | . 1 . Assault . | . . . Garrison . | . . . Intercept . | . . . Construction Impeded . | . . . Haulers Reinforced . | . . . Stealth | -11 -10 -10 --------- Run | Scr Mat Min Distress Signals . | . . . Communications Jammed . | . . . Distress Signals . | . . . Times Spotted 7 | . 2 5 Peak Tracking Total 4 | . 1 4 Tactical Retreats . | . . . Traps | -11 -10 -10 ------- Run | Scr Mat Min Traps Triggered . | . . . Indirectly . | . . . Trap Hack Attempts . | . . . Triggered . | . . . Disarmed . | . . . Reprogrammed . | . . . Reused . | . . . Traps Extracted . | . . . Installed . | . . . Triggered . | . . . Machines | -11 -10 -10 ---------- Run | Scr Mat Min Machines Disabled . | . . . Max in Single Turn . | . . . Machines Sabotaged . | . . . Garrisons Compromised . | . . . Overloaded Fab Kills . | . . . Fab Network Shutdowns . | . . . Hacking | -11 -10 -10 --------- Run | Scr Mat Min Machines Accessed 1 | . 1 . Terminals 1 | . 1 . Fabricators . | . . . Repair Stations . | . . . Recycling Units . | . . . Scanalyzers . | . . . Garrison Access . | . . . Total Hacks 1 | . 1 . Successful 1 | . 1 . Failed . | . . . Catastrophic . | . . . Database Lockouts . | . . . Manual . | . . . Terminals 1 | . 1 . Fabricators . | . . . Repair Stations . | . . . Recycling Units . | . . . Scanalyzers . | . . . Garrison Access . | . . . Terminal Hacks 1 | . 1 . Zone Layout 1 | . 1 . Fabricator Hacks . | . . . Repair Station Hacks . | . . . Recycling Unit Hacks . | . . . Scanalyzer . | . . . Garrison Access Hacks . | . . . Unauthorized Hacks . | . . . Terminals . | . . . Fabricators . | . . . Repair Stations . | . . . Recycling Units . | . . . Scanalyzers . | . . . Garrison Access . | . . . Data Cores Recovered . | . . . Used . | . . . Hacking Detections . | . . . Full Trace Events . | . . . Feedback Events . | . . . Feedback Blocked . | . . . Robot Schematics Acquired . | . . . Robots Built . | . . . Matter . | . . . Time . | . . . Total Robot Build Rating . | . . . Part Schematics Acquired . | . . . Parts Built . | . . . Matter . | . . . Time . | . . . Total Part Build Rating . | . . . Parts Repaired . | . . . Time . | . . . Parts Recycled . | . . . Recycled Matter . | . . . Retrieved Matter . | . . . Retrieved Components . | . . . Parts Scanalyzed . | . . . Part Schematics Acquired . | . . . Parts Damaged . | . . . Bothacking | -11 -10 -10 ------------ Run | Scr Mat Min Used RIF Installer . | . . . Robots Hacked . | . . . Non-combat . | . . . Combat . | . . . Robot Hacks Applied . | . . . Relay Couplers Released . | . . . Robots Rewired . | . . . Allies Hacked . | . . . Hacks Repelled . | . . . Allies | -11 -10 -10 -------- Run | Scr Mat Min Total Allies . | . . . Largest Group . | . . . Highest-Rated Group . | . . . Highest-Rated Ally . | . . . Total Orders . | . . . Ally Attacks . | . . . Total Damage . | . . . Kills . | . . . Allies Corrupted . | . . . Allies Melted . | . . . Intel | -11 -10 -10 ------- Run | Scr Mat Min Robot Analysis Total . | . . . Derelict Logs Recovered . | . . . Drone Launches . | . . . Drone Recoveries . | . . . Exploration | -11 -10 -10 ------------- Run | Scr Mat Min Turns Passed 363 | 122 137 104 Spaces Moved 360 | 143 130 87 Core 67 | 50 . 17 Treads . | . . . Legs . | . . . Wheels 293 | 93 130 70 Hover . | . . . Flight . | . . . Fastest Speed 50 | 50 90 90 Average Speed 84 | 76 90 91 Slowest Speed 100 | 90 90 100 Overloaded Moves . | . . . Propulsion Burnouts . | . . . Robots Hopped . | . . . Cave-ins Triggered . | . . . Exploration Rate (%) 16 | 6 20 24 Regions Visited 2 Branch Regions 1 Pre-discovered Areas . | . . . Known Exits Taken . | . . . Unknown Exits Taken 2 | 1 1 . Scrap Searched . | . . . Spaces Dug . | . . . Terrain Destroyed . | . . . Melee . | . . . Projectile . | . . . AOE . | . . . Actions | -11 -10 -10 --------- Run | Scr Mat Min Total 403 | 154 140 109 Wait 7 | 1 1 5 Move 358 | 142 129 87 Hop . | . . . Pick Up 8 | 6 2 . Fast Attach 5 | 4 1 . Attach 2 | 1 1 . Detach . | . . . Swap . | . . . Drop 1 | . 1 . Fire 6 | . 5 1 Melee . | . . . Ram 16 | . . 16 Kick . | . . . Crush . | . . . Escape Stasis . | . . . Rewire . | . . . Trap . | . . . Miscellaneous . | . . . Route ------- -11/Scrapyard -10/Materials -10/Mines History --------- Turn | Location | Event 47 | -11/Scrapyard | Discovered new exit (range 16) 123 | -11/Scrapyard | Entered Materials 211 | -10/Materials | Discovered new exit (range 10) 260 | -10/Materials | Entered Mines 314 | -10/Mines | Build established: Mutant 342 | -10/Mines | Core integrity fell below 50% 353 | -10/Mines | Core integrity fell below 20% 364 | -10/Mines | Destroyed by S-10 Pest with Light Assault Rifle Last Messages --------------- Something is scanning the area. 00285_ S-10 Pest destroyed. 00290_ K-01 Serf collects debris. 00307_ Slammed into R-06 Scavenger. 00308_ Destabilizing: System corrupted (+1). 00316_ Sml. Laser destroyed. 00319_ K-01 Serf collects debris. 00320_ Lgt. Ion Engine destroyed. 00324_ K-01 Serf collects debris. 00327_ Slammed into U-05 Engineer. 00327_ Destabilizing: Core damaged (-12). 00328_ Slammed into S-10 Pest. 00330_ K-01 Serf cleans the Laser Drill. 00330_ Slammed into S-10 Pest. 00336_ Lgt. Assault Rifle destroyed. 00339_ Wheel destroyed. 00339_ Com. Wheel destroyed. 00343_ Slammed into S-10 Pest. 00345_ Slammed into G-34 Mercenary. 00350_ K-01 Serf collects debris. Map ----- +----------------------------------------------------+ | ?????????????????????????????????????????????????? | | ?????????????????????????????????????????????????? | | ?????????????????????????????????????????????????? | | ?????????????????????????????????????????????????? | | ?????????????????????????????????????????????????? | | ?????????????????????????????????????????????????? | | ?????????????????????????????????????????????????? | | ?????????????????????????????????????????????????? | | ?????????????????????????????????????????????????? | | ?????????????????????????????????????????????????? | | ?????????????????????????????????????????????????? | | ?????????????????????????????????????????????????? | | ?????????????????????????????????????????????????? | | #?????????????????####???????????????????????????? | | T###########??????# ????????????????????????????? | | #??????# #????????????????????????????? | | """ """ #????### ##???????????????????????????? | | """ """ #????# ##??????????????????????????? | | """ """ ###### #???????????###????????????? | | %%%%%% g #??????????# ##???????????? | | """%""" % s ##????????? ##??????????? | | """%""" #######s ###??????# ### #??????? | | """%""" #?????# ##????# ???????? | | %% #?????# #??## #??????? | | """%""" #?????## #### #???????? | | """ """ #?????## @ ## #????????? | | """ """ #???### #?????????? | | #??## t ## #??????????? | | """ """ #??# ### ##????????????????? | | """ """ #?## ##?## #?????????????????? | | """ """ ### ##???# #?????????????????? | | ## """ ##????# #?????????????????? | | # """ #????## ##????????????????? | | ###### ##### """u #????# #????????????????? | | ?????# """ #????# ?????????????? | | ?????# ###### ##????# ####????????????? | | ?????# #????# ##?????# ##???????????????? | | ?????# ???## ##?????? #????????????????? | | ?????# ## #??## #??????# ##????????????????? | | ????? #??#???## #??????# ###?????????????????? | | ????? ????????# #?????# ????????????????????? | | ?????""#?????????# ????# ????????????????????? | | ?????""#?????????? ???# ????????????????????? | | ????"""#?????????? #??# ????????????????????? | | ???? #??????????? #??# ????????????????????? | | ?????##????????????? ????# ?????????????????????? | | ??????????????????????????# ?????????????????????? | | ??????????????????????????#??????????????????????? | | ?????????????????????????????????????????????????? | | ?????????????????????????????????????????????????? | +----------------------------------------------------+ Best States ------------- Heat Dissipation 25 Energy Generation 10 Energy Capacity 125 Matter Stores 300 Matter Capacity 300 Sight Range 16 Terrain Scan Density 10 Evasion (%) 50 Item Schematics ----------------- None Robot Schematics ------------------ None Fabricated ------------ Nothing Alien Tech Used ----------------- None Achievements -------------- None Challenges ------------ None Game ------ Seed ArcNovaApparatus Manual? 0 Play Time 00:12:21 Cumulative 6.4 hours Start 2020.04.18 @ 18:48:13 End 2020.04.18 @ 19:23:26 Sessions 1 Manual Loads 0 Difficulty Rogue Special Mode None Game No. 22 Rogue 22 Adventurer 0 Explorer 0 Win Type - Total 0 Types 0/0/0/0/0/0/0 Lore% 12 Gallery% 16 Achievement% 15 Wizard Run 0 Options --------- ASCII 1 Keyboard 1 Movement Numpad Keybinds 0 Fullscreen 1 Font 18/SmallcapsGlow Map View 76x50 Tactical HUD 1 Map Filters NONE Filters NONE Steam 1 RUN: 94af5d37-7b89-4ac2-9d16-44d2037007d2